[Event "FRA-ch Youth U14 2019"]
[Site "Hyeres"]
[Date "2019.04.20"]
[Round "8.4"]
[White "Lamaze, Simon"]
[Black "Meillon, Judicael"]
[Result "1-0"]
[ECO "E16"]
[WhiteElo "1937"]
[BlackElo "1987"]
[Annotator "NA"]
[PlyCount "103"]
[EventDate "2019.04.14"]
[EventType "swiss"]
[EventCountry "FRA"]
[SourceTitle "playchess.com"]
[Source "ChessBase"]
[SourceQuality "1"]
[TimeControl "5400+30"]

1. Nf3 {[%emt 0:00:00]} Nf6 {[%emt 0:00:00]} 2. d4 {[%emt 0:00:00]} e6 {[%emt 0:00:00]} 3. c4 {[%emt 0:00:00]} Bb4+ {[%emt 0:00:44]} 4. Bd2 {[%emt 0:00:00]} a5 {[%emt 0:00:30]} 5. g3 {[%emt 0:00:29]} b6 {[%emt 0:03:16]} 6. Bg2 {[%emt 0:00:18]} Bb7 {[%emt 0:00:48]} 7. O-O {[%emt 0:00:32]} O-O {[%emt 0:01:58]} 8. Nc3 {[%emt 0:04:07]} d6 {[%emt 0:03:44]} 9. Rc1 {[%emt 0:02:20]} Nbd7 {[%emt 0:04:13]} 10. Qc2 {[%emt 0:03:04]} Bxc3 {[%emt 0:03:42]} 11. Bxc3 {[%emt 0:00:16]} Ne4 {[%emt 0:02:05]} 12. Ng5 {[%emt 0:03:01]} Qxg5 {[%emt 0:03:34]} 13. Bxe4 {[%emt 0:00:20]} Bxe4 {[%emt 0:00:09]} 14. Qxe4 {[%emt 0:00:04]} d5 {[%emt 0:00:32]} 15. Qc2 {[%emt 0:02:23]} f5 {[%emt 0:04:46]} 16. Bd2 {[%emt 0:01:51]} Qg4 {[%emt 0:04:37]} 17. cxd5 {[%emt 0:00:24]} Nf6 {[%emt 0:00:26]} 18. dxe6 {[%emt 0:07:59]} Rae8 {[%emt 0:08:28]} 19. Bf4 {[%emt 0:03:30]} Qh3 {[%emt 0:06:46]} 20. f3 {[%emt 0:02:47]} Nd5 {[%emt 0:05:17]} 21. e3 {[%emt 0:08:51]} Rxe6 {[%emt 0:02:35]} 22. Qb3 {[%emt 0:03:13]} Nxf4 {[%emt 0:01:02]} 23. exf4 {[%emt 0:00:13]} Rfe8 {[%emt 0:00:15]} 24. Rfe1 {[%emt 0:02:24]} Kf7 {[%emt 0:04:22]} 25. Rc6 {[%emt 0:02:10]} Qh6 {[%emt 0:00:15]} 26. Re5 {[%emt 0:02:38]} Qf6 {[%emt 0:01:25]} 27. Qd5 {[%emt 0:00:57]} g6 {[%emt 0:01:06]} 28. Rxc7+ {[%emt 0:00:59]} Kf8 {[%emt 0:00:49]} 29. Qd7 {[%emt 0:01:29]} R8e7 {[%emt 0:04:11]} 30. Rxe6 {[%emt 0:00:49]} Qxe6 {[%emt 0:00:19]} 31. Qxe7+ {[%emt 0:00:07]} Qxe7 {[%emt 0:00:03]} 32. Rxe7 {[%emt 0:00:06]} Kxe7 {[%emt 0:00:03]} 33. Kf2 {[%emt 0:00:07]} Kd6 {[%emt 0:00:22]} 34. Ke3 {[%emt 0:00:07]} Kc6 {[%emt 0:02:18]} 35. Kd3 {[%emt 0:00:31]} b5 {[%emt 0:04:14]} 36. b3 {[%emt 0:01:03]} Kd5 {[%emt 0:01:21]} 37. a4 {[%emt 0:00:12]} b4 {[%emt 0:00:08]} 38. g4 {[%emt 0:00:19]} h6 {[%emt 0:28:37]} 39. g5 {[%emt 0:00:09]} hxg5 {[%emt 0:00:00]} 40. fxg5 {[%emt 0:00:09]} Ke6 {[%emt 0:00:00]} 41. f4 {[%emt 0:00:31]} Kd6 {[%emt 0:00:00]} 42. Kc4 {[%emt 0:00:18]} Kc6 {[%emt 0:00:00]} 43. d5+ {[%emt 0:00:17]} Kd7 {[%emt 0:00:00]} 44. Kc5 {[%emt 0:00:07]} Kc7 {[%emt 0:00:00]} 45. d6+ {[%emt 0:00:10]} Kd8 {[%emt 0:00:00]} 46. Kc6 {[%emt 0:00:10]} Kc8 {[%emt 0:00:00]} 47. d7+ {[%emt 0:00:04]} Kd8 {[%emt 0:00:00]} 48. h3 {[%emt 0:00:04]} Ke7 {[%emt 0:00:00]} 49. Kc7 {[%emt 0:00:07]} Ke6 {[%emt 0:00:00]} 50. d8=Q {[%emt 0:00:15]} Kf7 {[%emt 0:00:00]} 51. Qf6+ {[%emt 0:00:14]} Kg8 {[%emt 0:00:00]} 52. Qe7 {[%emt 0:00:06]} 1-0

[Event "FRA-ch Youth U14 2019"]
[Site "Hyeres"]
[Date "2019.04.21"]
[Round "9.1"]
[White "Fardet, Elouan"]
[Black "Mathieu, Phileas"]
[Result "1-0"]
[ECO "B70"]
[WhiteElo "2001"]
[BlackElo "2105"]
[Annotator "NA"]
[PlyCount "154"]
[EventDate "2019.04.14"]
[EventType "swiss"]
[EventCountry "FRA"]
[SourceTitle "playchess.com"]
[Source "ChessBase"]
[SourceQuality "1"]
[TimeControl "5400+30"]

1. e4 {[%emt 0:00:00]} c5 {[%emt 0:00:00]} 2. Nf3 {[%emt 0:00:00]} Nc6 {[%emt 0:00:00]} 3. d4 {[%emt 0:00:00]} cxd4 {[%emt 0:00:00]} 4. Nxd4 {[%emt 0:00:03]} Nf6 {[%emt 0:00:00]} 5. Nc3 {[%emt 0:00:04]} d6 {[%emt 0:00:00]} 6. g3 {[%emt 0:00:20]} g6 {[%emt 0:14:45]} 7. Nde2 {[%emt 0:00:29]} Bg7 {[%emt 0:02:15]} 8. Bg2 {[%emt 0:00:14]} O-O {[%emt 0:00:22]} 9. O-O {[%emt 0:00:24]} Bd7 {[%emt 0:03:54]} 10. h3 {[%emt 0:00:28]} a6 {[%emt 0:06:01]} 11. a4 {[%emt 0:01:04]} Rb8 {[%emt 0:03:10]} 12. Nd5 {[%emt 0:01:39]} Nxd5 {[%emt 0:05:26]} 13. exd5 {[%emt 0:00:16]} Ne5 {[%emt 0:00:12]} 14. Ra2 {[%emt 0:03:06]} e6 {[%emt 1:00:55]} 15. dxe6 {[%emt 1:29:23]} Bxe6 {[%emt 0:00:30]} 16. b3 {[%emt 0:00:00]} d5 {[%emt 0:00:00]} 17. Nf4 {[%emt 0:00:00]} d4 {[%emt 0:00:00]} 18. Nxe6 {[%emt 0:00:00]} fxe6 {[%emt 0:00:00]} 19. Bf4 {[%emt 0:00:00]} g5 {[%emt 0:00:00]} 20. Bd2 {[%emt 0:00:00]} Qf6 {[%emt 0:00:00]} 21. f4 {[%emt 0:00:00]} Ng6 {[%emt 0:00:00]} 22. fxg5 {[%emt 0:03:30]} Qe5 23. Rxf8+ {[%emt 0:00:00]} Rxf8 {[%emt 0:00:00]} 24. Qe1 {[%emt 0:00:00]} Qc7 {[%emt 0:00:00]} 25. Bb4 {[%emt 0:00:00]} Rf7 {[%emt 0:00:00]} 26. Be4 {[%emt 0:00:00]} Ne5 {[%emt 0:00:00]} 27. Kg2 {[%emt 0:00:00]} Qd8 {[%emt 0:00:00]} 28. Qe2 {[%emt 0:00:00]} Qxg5 {[%emt 0:00:00]} 29. Bd2 {[%emt 0:00:00]} Qf6 {[%emt 0:00:00]} 30. a5 {[%emt 0:00:00]} Bf8 {[%emt 0:00:47]} 31. Ra4 {[%emt 0:00:00]} Bc5 {[%emt 0:00:12]} 32. Bf4 {[%emt 0:00:00]} Ng6 {[%emt 0:00:22]} 33. Bxg6 {[%emt 0:00:00]} Qxg6 {[%emt 0:00:34]} 34. Kh2 {[%emt 0:00:00]} h5 {[%emt 0:04:56]} 35. Rc4 {[%emt 0:00:42]} Qf5 {[%emt 0:00:30]} 36. b4 {[%emt 0:01:33]} Ba7 {[%emt 0:03:09]} 37. Rc8+ {[%emt 0:00:29]} Kh7 {[%emt 0:00:00]} 38. Ra8 {[%emt 0:01:27]} d3 {[%emt 0:00:09]} 39. cxd3 {[%emt 0:00:33]} Bd4 {[%emt 0:00:36]} 40. Re8 {[%emt 0:00:15]} e5 {[%emt 0:00:41]} 41. Be3 {[%emt 0:00:32]} Bc3 {[%emt 0:00:29]} 42. Bc5 {[%emt 0:00:43]} Kg7 {[%emt 0:00:32]} 43. Qe4 {[%emt 0:02:06]} Qd7 {[%emt 0:00:29]} 44. Ra8 {[%emt 0:00:40]} Qe6 {[%emt 0:00:24]} 45. Qe2 {[%emt 0:01:07]} Qg6 {[%emt 0:00:35]} 46. Rd8 {[%emt 0:00:36]} Qg5 {[%emt 0:00:24]} 47. Rd6 {[%emt 0:00:25]} Kh8 {[%emt 0:00:24]} 48. h4 {[%emt 0:00:35]} Qf5 {[%emt 0:00:34]} 49. Rh6+ {[%emt 0:00:44]} Kg8 {[%emt 0:00:21]} 50. Rxh5 {[%emt 0:00:09]} Qe6 {[%emt 0:00:21]} 51. Rg5+ {[%emt 0:00:46]} Kh8 {[%emt 0:00:24]} 52. Qg4 {[%emt 0:00:30]} Qxg4 {[%emt 0:00:25]} 53. Rxg4 {[%emt 0:00:07]} Rd7 {[%emt 0:00:00]} 54. Kg2 {[%emt 0:01:18]} Rxd3 {[%emt 0:00:30]} 55. Re4 {[%emt 0:00:11]} Kg7 {[%emt 0:00:14]} 56. g4 {[%emt 0:00:27]} Kf6 {[%emt 0:00:09]} 57. Kf2 {[%emt 0:00:17]} Rd1 {[%emt 0:01:34]} 58. Ke2 {[%emt 0:00:56]} Rh1 {[%emt 0:00:01]} 59. h5 {[%emt 0:00:17]} Ke6 {[%emt 0:00:32]} 60. Re3 {[%emt 0:00:37]} Bb2 {[%emt 0:00:37]} 61. Rd3 {[%emt 0:00:10]} Rh4 {[%emt 0:00:47]} 62. Rd6+ {[%emt 0:00:08]} Kf7 {[%emt 0:00:47]} 63. Rg6 {[%emt 0:00:28]} Rh3 {[%emt 0:00:35]} 64. Rb6 {[%emt 0:00:42]} Rg3 {[%emt 0:00:30]} 65. Rxb7+ {[%emt 0:00:12]} Kf6 {[%emt 0:00:20]} 66. Rb6+ {[%emt 0:00:12]} Kg5 {[%emt 0:00:20]} 67. Rg6+ {[%emt 0:00:23]} Kf4 {[%emt 0:00:01]} 68. h6 {[%emt 0:00:17]} Ke4 {[%emt 0:01:26]} 69. Bf2 {[%emt 0:01:27]} Rg2 {[%emt 0:00:23]} 70. Kf1 {[%emt 0:00:11]} Rh2 {[%emt 0:00:04]} 71. Kg1 {[%emt 0:00:15]} Rh3 {[%emt 0:00:22]} 72. Kg2 {[%emt 0:00:05]} Rf3 {[%emt 0:00:25]} 73. h7 {[%emt 0:00:09]} Bd4 {[%emt 0:00:12]} 74. Bxd4 {[%emt 0:00:10]} Rf8 {[%emt 0:00:29]} 75. Rg8 {[%emt 0:00:06]} Rf4 {[%emt 0:00:14]} 76. h8=Q {[%emt 0:00:08]} exd4 {[%emt 0:00:07]} 77. Re8+ {[%emt 0:00:18]} Kd3 {[%emt 0:00:04]} 1-0

[Event "FRA-ch Youth U14 2019"]
[Site "Hyeres"]
[Date "2019.04.21"]
[Round "9.2"]
[White "Droin, Augustin"]
[Black "Lamaze, Simon"]
[Result "1/2-1/2"]
[ECO "B30"]
[WhiteElo "2088"]
[BlackElo "1937"]
[Annotator "NA"]
[PlyCount "108"]
[EventDate "2019.04.14"]
[EventType "swiss"]
[EventCountry "FRA"]
[SourceTitle "playchess.com"]
[Source "ChessBase"]
[SourceQuality "1"]
[TimeControl "5400+30"]

1. e4 {[%emt 0:00:00]} c5 {[%emt 0:01:14]} 2. Nf3 {[%emt 0:00:00]} Nc6 {[%emt 0:00:05]} 3. Bb5 {[%emt 0:00:04]} Qc7 {[%emt 0:00:06]} 4. O-O {[%emt 0:02:49]} a6 {[%emt 0:00:19]} 5. Bxc6 {[%emt 0:01:54]} Qxc6 {[%emt 0:00:04]} 6. Nc3 {[%emt 0:00:40]} d6 {[%emt 0:00:34]} 7. h3 {[%emt 0:00:40]} e6 {[%emt 0:02:39]} 8. d4 {[%emt 0:00:28]} cxd4 {[%emt 0:00:20]} 9. Nxd4 {[%emt 0:00:13]} Qc7 {[%emt 0:00:10]} 10. Be3 {[%emt 0:03:20]} Nf6 {[%emt 0:01:04]} 11. a4 {[%emt 0:01:00]} b6 {[%emt 0:04:13]} 12. Nf3 {[%emt 0:08:57]} Bb7 {[%emt 0:03:22]} 13. Qd4 {[%emt 0:01:00]} Be7 {[%emt 0:00:44]} 14. Rfe1 {[%emt 0:00:24]} Qc5 {[%emt 0:03:51]} 15. e5 {[%emt 0:06:15]} Qxd4 {[%emt 0:02:54]} 16. Bxd4 {[%emt 0:00:09]} Nd7 {[%emt 0:00:36]} 17. exd6 {[%emt 0:03:00]} Bxd6 {[%emt 0:00:06]} 18. Nd2 {[%emt 0:00:08]} O-O {[%emt 0:04:47]} 19. Nc4 {[%emt 0:04:12]} Bc7 {[%emt 0:01:56]} 20. Red1 {[%emt 0:02:10]} Bc6 {[%emt 0:05:08]} 21. Na3 {[%emt 0:08:30]} Rfd8 {[%emt 0:01:08]} 22. b4 {[%emt 0:01:40]} Nf6 {[%emt 0:10:58]} 23. b5 {[%emt 0:03:08]} Bb7 {[%emt 0:06:54]} 24. bxa6 {[%emt 0:00:41]} Rxa6 {[%emt 0:04:10]} 25. Nab5 {[%emt 0:02:37]} Rc8 {[%emt 0:01:03]} 26. Nxc7 {[%emt 0:01:07]} Rxc7 {[%emt 0:00:30]} 27. Bxb6 {[%emt 0:00:30]} Rc8 {[%emt 0:00:30]} 28. a5 {[%emt 0:00:30]} h6 {[%emt 0:00:30]} 29. Nb5 {[%emt 0:00:30]} Nd5 {[%emt 0:01:54]} 30. Nd6 {[%emt 0:09:44]} Rb8 {[%emt 0:00:30]} 31. Nc4 {[%emt 0:00:30]} Rc8 {[%emt 0:00:30]} 32. Nd6 {[%emt 0:00:30]} Rb8 {[%emt 0:00:30]} 33. Rdb1 {[%emt 0:00:30]} Ba8 {[%emt 0:00:30]} 34. Ne4 {[%emt 0:00:30]} Nxb6 {[%emt 0:00:30]} 35. Nc5 {[%emt 0:00:30]} Ra7 {[%emt 0:00:30]} 36. axb6 {[%emt 0:00:30]} Rxb6 {[%emt 0:00:30]} 37. Rxb6 {[%emt 0:00:30]} Rxa1+ {[%emt 0:00:30]} 38. Kh2 {[%emt 0:00:30]} Bd5 {[%emt 0:00:30]} 39. Rb8+ {[%emt 0:00:30]} Kh7 {[%emt 0:00:30]} 40. Rc8 {[%emt 0:00:30]} Ra2 {[%emt 0:00:30]} 41. Nd7 {[%emt 0:00:30]} Kg6 {[%emt 0:00:30]} 42. Kg3 {[%emt 0:00:30]} Ra7 {[%emt 0:00:30]} 43. Ne5+ {[%emt 0:00:30]} Kf6 {[%emt 0:00:30]} 44. Ng4+ {[%emt 0:00:30]} Ke7 {[%emt 0:00:30]} 45. c4 {[%emt 0:00:30]} Ra3+ {[%emt 0:00:30]} 46. Kh2 {[%emt 0:00:30]} Rc3 {[%emt 0:00:30]} 47. Rc7+ {[%emt 0:00:30]} Ke8 {[%emt 0:00:30]} 48. c5 {[%emt 0:00:30]} Rc2 {[%emt 0:00:30]} 49. Rc8+ {[%emt 0:00:30]} Ke7 {[%emt 0:00:30]} 50. Rg8 {[%emt 0:00:30]} g6 {[%emt 0:00:30]} 51. Kg3 {[%emt 0:00:30]} Rxc5 {[%emt 0:00:30]} 52. Nxh6 {[%emt 0:00:30]} Kd7 {[%emt 0:27:18]} 53. Ng4 {[%emt 0:33:34]} Ke7 {[%emt 0:00:30]} 54. Nh6 {[%emt 0:00:30]} Kd7 {[%emt 0:00:30]} 1/2-1/2

[Event "FRA-ch Youth U14 2019"]
[Site "Hyeres"]
[Date "2019.04.21"]
[Round "9.3"]
[White "Papadiamandis, Elliot"]
[Black "Radovanovic, Luka"]
[Result "1-0"]
[ECO "B38"]
[WhiteElo "2157"]
[BlackElo "2111"]
[Annotator "NA"]
[PlyCount "147"]
[EventDate "2019.04.14"]
[EventType "swiss"]
[EventCountry "FRA"]
[SourceTitle "playchess.com"]
[Source "ChessBase"]
[SourceQuality "1"]
[TimeControl "5400+30"]

1. e4 {[%emt 0:00:00]} c5 {[%emt 0:00:00]} 2. Nf3 {[%emt 0:00:31]} Nc6 {[%emt 0:00:00]} 3. d4 {[%emt 0:00:40]} cxd4 {[%emt 0:00:08]} 4. Nxd4 {[%emt 0:00:19]} g6 {[%emt 0:00:22]} 5. c4 {[%emt 0:00:34]} Bg7 {[%emt 0:00:28]} 6. Be3 {[%emt 0:00:24]} Nf6 {[%emt 0:00:32]} 7. Nc3 {[%emt 0:00:28]} O-O {[%emt 0:00:37]} 8. Be2 {[%emt 0:00:13]} d6 {[%emt 0:00:43]} 9. O-O {[%emt 0:01:40]} Bd7 {[%emt 0:00:26]} 10. Nc2 {[%emt 0:02:08]} Ne8 {[%emt 0:08:54]} 11. Qd2 {[%emt 0:04:47]} Nc7 {[%emt 0:06:13]} 12. Rad1 {[%emt 0:07:48]} Be6 {[%emt 0:08:15]} 13. b3 {[%emt 0:04:04]} f5 {[%emt 0:04:01]} 14. exf5 {[%emt 0:08:09]} Bxf5 {[%emt 0:01:36]} 15. Nd4 {[%emt 0:01:10]} Qd7 {[%emt 0:12:27]} 16. Bf3 {[%emt 0:13:40]} Bg4 {[%emt 0:06:40]} 17. Bxg4 {[%emt 0:03:56]} Qxg4 {[%emt 0:01:40]} 18. h3 {[%emt 0:04:14]} Qd7 {[%emt 0:01:36]} 19. Ne4 {[%emt 0:03:50]} Nxd4 {[%emt 0:11:40]} 20. Bxd4 {[%emt 0:00:24]} Qf5 {[%emt 0:01:44]} 21. Ng3 {[%emt 0:07:19]} Qf7 {[%emt 0:03:43]} 22. Qe3 {[%emt 0:01:51]} b6 {[%emt 0:05:19]} 23. Bxg7 {[%emt 0:03:09]} Qxg7 {[%emt 0:04:33]} 24. Qe4 {[%emt 0:03:31]} Na6 {[%emt 0:06:49]} 25. Rde1 {[%emt 0:03:43]} Rae8 {[%emt 0:04:14]} 26. Qb7 {[%emt 0:02:57]} Nc5 {[%emt 0:01:38]} 27. Qxa7 {[%emt 0:01:08]} Ra8 {[%emt 0:01:37]} 28. Qxe7 {[%emt 0:01:16]} Qxe7 {[%emt 0:00:31]} 29. Rxe7 {[%emt 0:00:05]} Rxa2 {[%emt 0:00:12]} 30. Re3 {[%emt 0:01:00]} Rb2 {[%emt 0:00:53]} 31. Ne4 {[%emt 0:09:25]} Nxe4 {[%emt 0:01:40]} 32. Rxe4 {[%emt 0:00:11]} Rxb3 {[%emt 0:00:16]} 33. Rd4 {[%emt 0:03:52]} Rc8 {[%emt 0:01:43]} 34. Ra1 {[%emt 0:01:21]} Rc7 {[%emt 0:02:31]} 35. Rxd6 {[%emt 0:00:52]} Rxc4 {[%emt 0:01:12]} 36. Rd7 {[%emt 0:00:36]} Rc8 {[%emt 0:00:55]} 37. Raa7 {[%emt 0:00:29]} b5 {[%emt 0:01:39]} 38. Rg7+ {[%emt 0:00:09]} Kh8 {[%emt 0:00:16]} 39. Rxh7+ {[%emt 0:00:14]} Kg8 {[%emt 0:00:01]} 40. Rhg7+ {[%emt 0:00:27]} Kh8 {[%emt 0:00:32]} 41. Rxg6 {[%emt 0:00:25]} Rb1+ {[%emt 0:00:18]} 42. Kh2 {[%emt 0:00:04]} b4 {[%emt 0:00:57]} 43. Rb6 {[%emt 0:01:06]} b3 {[%emt 0:00:49]} 44. Rab7 {[%emt 0:00:13]} Rc3 {[%emt 0:00:37]} 45. Ra6 {[%emt 0:00:22]} Rc8 {[%emt 0:00:21]} 46. Ra3 {[%emt 0:00:37]} Rf1 {[%emt 0:00:50]} 47. Raxb3 {[%emt 0:08:09]} Rxf2 {[%emt 0:00:18]} 48. Rb8 {[%emt 0:00:00]} Rxb8 {[%emt 0:00:07]} 49. Rxb8+ {[%emt 0:00:00]} Kg7 {[%emt 0:00:06]} 50. h4 {[%emt 0:00:00]} Rc2 {[%emt 0:00:11]} 51. Kh3 {[%emt 0:00:00]} Rc4 {[%emt 0:00:08]} 52. Rb3 {[%emt 0:00:00]} Kh6 {[%emt 0:00:30]} 53. g4 {[%emt 0:00:00]} Rc6 {[%emt 0:00:34]} 54. Kg3 {[%emt 0:00:00]} Ra6 {[%emt 0:00:08]} 55. Re3 {[%emt 0:00:00]} Rb6 {[%emt 0:00:05]} 56. Kf4 {[%emt 0:00:00]} Ra6 {[%emt 0:00:15]} 57. Kf5 {[%emt 0:00:00]} Ra5+ {[%emt 0:00:12]} 58. Re5 {[%emt 0:00:00]} Ra1 {[%emt 0:00:08]} 59. Re6+ {[%emt 0:00:00]} Kh7 {[%emt 0:00:14]} 60. h5 {[%emt 0:00:00]} Rf1+ {[%emt 0:00:10]} 61. Kg5 {[%emt 0:00:00]} Ra1 {[%emt 0:00:22]} 62. Re7+ {[%emt 0:00:00]} Kh8 {[%emt 0:00:05]} 63. Rf7 {[%emt 0:00:00]} Ra6 {[%emt 0:00:31]} 64. h6 {[%emt 0:00:00]} Rb6 {[%emt 0:00:14]} 65. Rf6 {[%emt 0:00:00]} Rb7 {[%emt 0:00:45]} 66. Kg6 {[%emt 0:00:42]} Rb8 {[%emt 0:00:02]} 67. g5 {[%emt 0:00:09]} Rg8+ {[%emt 0:00:12]} 68. Kh5 {[%emt 0:00:15]} Rb8 {[%emt 0:00:14]} 69. Ra6 {[%emt 0:00:10]} Rc8 {[%emt 0:00:08]} 70. Ra5 {[%emt 0:00:07]} Kg8 {[%emt 0:00:11]} 71. g6 {[%emt 0:00:34]} Kh8 {[%emt 0:00:08]} 72. h7 {[%emt 0:00:44]} Kg7 {[%emt 0:00:52]} 73. Ra7+ {[%emt 0:00:15]} Kf6 {[%emt 0:00:13]} 74. Rf7+ {[%emt 0:00:09]} 1-0

[Event "FRA-ch Youth U14 2019"]
[Site "Hyeres"]
[Date "2019.04.21"]
[Round "9.4"]
[White "Bottazzi, Ulysse"]
[Black "Eveno, Nathan"]
[Result "1/2-1/2"]
[ECO "B99"]
[WhiteElo "1967"]
[BlackElo "1764"]
[Annotator "NA"]
[PlyCount "62"]
[EventDate "2019.04.14"]
[EventType "swiss"]
[EventCountry "FRA"]
[SourceTitle "playchess.com"]
[Source "ChessBase"]
[SourceQuality "1"]
[TimeControl "5400+30"]

1. e4 {[%emt 0:00:00]} c5 {[%emt 0:00:00]} 2. Nf3 {[%emt 0:00:00]} d6 {[%emt 0:00:00]} 3. d4 {[%emt 0:00:00]} cxd4 {[%emt 0:00:00]} 4. Nxd4 {[%emt 0:00:00]} Nf6 {[%emt 0:00:14]} 5. Nc3 {[%emt 0:00:04]} a6 {[%emt 0:00:27]} 6. Bg5 {[%emt 0:00:14]} e6 {[%emt 0:00:51]} 7. f4 {[%emt 0:00:09]} Be7 {[%emt 0:00:54]} 8. Qf3 {[%emt 0:01:01]} Qc7 {[%emt 0:02:00]} 9. O-O-O {[%emt 0:00:51]} Nbd7 {[%emt 0:01:04]} 10. g4 {[%emt 0:01:17]} b5 {[%emt 0:01:50]} 11. Bxf6 {[%emt 0:02:41]} Nxf6 {[%emt 0:00:59]} 12. g5 {[%emt 0:00:51]} Nd7 {[%emt 0:00:07]} 13. f5 {[%emt 0:00:14]} Bxg5+ {[%emt 0:03:08]} 14. Kb1 {[%emt 0:00:30]} Ne5 {[%emt 0:02:13]} 15. Qh5 {[%emt 0:01:07]} Qd8 {[%emt 0:02:53]} 16. fxe6 {[%emt 0:05:51]} g6 {[%emt 0:03:45]} 17. exf7+ {[%emt 0:01:27]} Kxf7 {[%emt 0:00:16]} 18. Qe2 {[%emt 0:02:38]} Bg4 {[%emt 0:03:20]} 19. Qf2+ {[%emt 0:00:22]} Qf6 {[%emt 0:01:49]} 20. Qxf6+ {[%emt 0:00:32]} Bxf6 {[%emt 0:00:08]} 21. Be2 {[%emt 0:00:25]} Bxe2 {[%emt 0:04:41]} 22. Ndxe2 {[%emt 0:00:35]} Nc4 {[%emt 0:02:15]} 23. Rd3 {[%emt 0:07:45]} Rae8 {[%emt 0:10:28]} 24. Ng3 {[%emt 0:18:03]} b4 {[%emt 0:58:38]} 25. Nd1 {[%emt 0:03:06]} Be5 {[%emt 0:00:00]} 26. Nf1 {[%emt 0:06:10]} Rhf8 {[%emt 0:00:00]} 27. Nfe3 {[%emt 0:01:40]} Nxe3 {[%emt 0:00:00]} 28. Nxe3 {[%emt 0:00:54]} Bf4 {[%emt 0:00:00]} 29. Nd5 {[%emt 0:05:55]} Rxe4 {[%emt 0:00:00]} 30. Nxf4 {[%emt 0:01:05]} Rxf4 {[%emt 0:00:00]} 31. Rxd6 {[%emt 0:00:22]} Ke7 {[%emt 0:00:00]} 1/2-1/2